Cogmind - Beta 10.2 @@@ ROGUE MODE // 2021.03.31 @ 21:46:37 // Winter2019/RPGLIKE Player: Chiefwannatoke Result: Destroyed self with Mini Grenade Launcher Performance ------------- Evolutions (2) 1000 Regions Visited (5) 1000 Robots Destroyed (38) 190 Value Destroyed (835) 835 Prototype IDs (6) 120 Alien Tech Used (0) 0 Bonus (0) 0 TOTAL SCORE: 3145 Bonus ------- None Cogmind --------- Core Integrity 0/750 Matter 280/300 Energy 266/290 System Corruption 0% Temperature Cool (-91) Movement Walking (120) Location -8/Materials Parts ------- > --- POWER (1) -------- Nuclear Core > --- PROPULSION (2) --- Aluminum Leg Hover Unit > --- UTILITY (5) ------ Cryofiber Web Advanced Sensor Array Improved Targeting Computer Armor Integrity Analyzer > --- WEAPON (2) ------- Heavy EM Shotgun Mini Grenade Launcher > --- INVENTORY (2) ---- Maneuvering Thrusters Heavy Laser Peak State ------------ > --- POWER ------------ Nuclear Core > --- PROPULSION ------- Hover Unit Hover Unit > --- UTILITY ---------- Cryofiber Web Advanced Sensor Array Improved Targeting Computer Armor Integrity Analyzer Light Armor Plating > --- WEAPON ----------- Heavy EM Shotgun Heavy Laser > --- INVENTORY -------- Maneuvering Thrusters Mini Grenade Launcher [Rating: 24] Favorites ----------- Power Improved Ion Engine Engine Improved Ion Engine Power Core Nuclear Core Propulsion Hover Unit Leg Aluminum Leg Wheel Wheel Hover Unit Hover Unit Utility Heat Sink Device Heat Sink Processor Seismic Analyzer Protection Light Armor Plating Weapon Small Laser Energy Gun Small Laser Ballistic Gun Light Assault Rifle Launcher Mini Grenade Launcher Build | -11 -10 -10 -10 -9 -8 ------- Run | Scr Mat Min Exi Min Mat Slots Evolved 6 | 4 . . . 1 1 Power . | . . . . . . Propulsion 1 | 1 . . . . . Utility 4 | 2 . . . 1 1 Weapon 1 | 1 . . . . . Parts Attached 26 | 5 6 1 . 7 7 Power 4 | 1 1 . . 1 1 Engine 3 | 1 1 . . 1 . Core 1 | . . . . . 1 Reactor . | . . . . . . Propulsion 5 | 2 2 . . . 1 Treads . | . . . . . . Leg 1 | . . . . . 1 Wheel 2 | 2 . . . . . Hover 2 | . 2 . . . . Flight . | . . . . . . Utility 9 | . 3 1 . 3 2 Device 5 | . 2 1 . . 2 Storage . | . . . . . . Processor 3 | . 1 . . 2 . Hackware . | . . . . . . Protection 1 | . . . . 1 . Artifact . | . . . . . . Weapon 8 | 2 . . . 3 3 Energy Gun 4 | 1 . . . 1 2 Energy Cannon . | . . . . . . Ballistic Gun 3 | 1 . . . 2 . Ballistic Cannon . | . . . . . . Launcher 1 | . . . . . 1 Special Weapon . | . . . . . . Impact Weapon . | . . . . . . Slashing Weapon . | . . . . . . Piercing Weapon . | . . . . . . Special Melee Weapon . | . . . . . . Unidentified Prototypes 1 | . . . . . 1 Parts Lost 2 | . . . . . 2 Power . | . . . . . . Propulsion 1 | . . . . . 1 Utility 1 | . . . . . 1 Weapon . | . . . . . . Highest Loss Streak 2 | . . . . . 2 Average Slot Usage (%) 91 | . 74 100 100 100 98 Engine 8 | . 12 12 12 11 . Core 2 | . . . . . 9 Wheel 7 | . 21 . . . . Hover 16 | . 3 25 25 23 19 Device 17 | . 10 25 25 20 17 Processor 10 | . 1 12 12 15 20 Protection 3 | . . . . 3 9 Energy Gun 12 | . 12 12 12 11 12 Ballistic Gun 10 | . 12 12 12 11 7 Naked Turns . | . . . . . . Heaviest Build 20 | 7 12 12 11 17 20 Greatest Support 26 | 26 26 17 17 17 17 Greatest Overweight (x) 3 | . 3 . . . 1 Average Overweight (x) . | . . . . . . Largest Inventory Capacity 2 | 1 1 2 2 2 2 Average Capacity 1 | 1 1 1 2 2 2 Most Carried 2 | . 1 1 1 2 2 Average Carried 1 | . . 1 1 1 2 Final Capacity 2 | 1 1 2 2 2 2 Final Carried 2 | . 1 1 1 2 2 Class Distribution -------------------- 96% | Mutant 3% | Scavenger-Mutant Dominant Class ---------------- Mutant | -10/Materials Mutant | -10/Mines Mutant | -10/Exiles Mutant | -9/Mines Mutant | -8/Materials Resources | -11 -10 -10 -10 -9 -8 ----------- Run | Scr Mat Min Exi Min Mat Matter Collected 545 | 237 58 69 . 73 108 Remotely . | . . . . . . Salvage Created 1103 | . 159 159 . 109 676 Parts 80 | . 18 12 . 12 38 Haulers Intercepted 1 | . . . . . 1 Recyclers Shooed 1 | . . . . 1 . Parts Field Recycled . | . . . . . . Retrieved Matter . | . . . . . . Parts Self-Destructed . | . . . . . . Prevented . | . . . . . . Kills | -11 -10 -10 -10 -9 -8 ------- Run | Scr Mat Min Exi Min Mat Combat Hostiles Destroyed 28 | . 6 6 . 7 9 Guns 28 | . 6 6 . 7 9 Classes Destroyed 7 | . 2 . . . 5 Worker 4 | . . . . . 4 Builder 4 | . . . . . 4 Hauler 1 | . . . . . 1 Watcher 1 | . . . . . 1 Swarmer 15 | . 4 4 . 7 . Grunt 11 | . 2 2 . . 7 Sentry 2 | . . . . . 2 Best Kill Streak 16 | . 3 5 . 4 16 Combat Bots Only 6 | . 3 5 . 4 6 Max Kills in Single Turn 3 | . 1 1 . 1 3 Gunslinging . | . . . . . . Exploded . | . . . . . . Melee . | . . . . . . Uniques/NPCs Destroyed . | . . . . . . Combat | -11 -10 -10 -10 -9 -8 -------- Run | Scr Mat Min Exi Min Mat Damage Taken 1668 | . 260 169 . 217 1022 Core 1265 | . 206 136 . 173 750 Absorbed by Shields . | . . . . . . Redirected to Core 1062 | . 171 107 . 124 660 Core Remaining (%) 88 | 100 . . . 77 . Volleys Fired 77 | . 15 15 . 16 31 Largest 2 | . 2 2 . 2 2 Hottest 119 | . 60 60 . 60 119 Shots Fired 150 | . 30 30 . 32 58 Gun 147 | . 30 30 . 32 55 Cannon . | . . . . . . Launcher 3 | . . . . . 3 Special . | . . . . . . Kinetic 51 | . 15 15 . 16 5 Thermal 69 | . 15 15 . 16 23 Explosive 3 | . . . . . 3 Electromagnetic 27 | . . . . . 27 Robot Hit Streak 14 | . 6 7 . 9 14 Robot Miss Streak 4 | . 3 3 . 4 3 Penetration Max . | . . . . . . Secondary Targets 9 | . 2 2 . 1 4 Max Gunslinging Chain 1 | . 1 1 . 1 1 Shots Hit Robots 98 | . 17 17 . 17 47 Core Hits 71 | . 9 10 . 10 42 Critical Hits 1 | . . . . . 1 Critical Kills . | . . . . . . Critical Parts Destroyed 1 | . . . . . 1 Melee Attacks . | . . . . . . Impact . | . . . . . . Slashing . | . . . . . . Piercing . | . . . . . . Sneak Attacks . | . . . . . . Combat Hostiles . | . . . . . . Follow-up Attacks . | . . . . . . Damage Inflicted 2374 | . 193 188 . 165 1828 Guns 1435 | . 193 182 . 165 895 Cannons . | . . . . . . Explosions 933 | . . . . . 933 Melee . | . . . . . . Ramming 6 | . . 6 . . . Kinetic 274 | . 61 65 . 68 80 Thermal 953 | . 132 117 . 97 607 Explosive 598 | . . . . . 598 Electromagnetic 543 | . . . . . 543 Impact . | . . . . . . Slashing . | . . . . . . Piercing . | . . . . . . Highest Corruption 3 | . 3 3 3 3 . Average Corruption 2 | . 2 3 3 3 . Corruption Purged . | . . . . . . Effects 20 | . 6 5 4 5 . Message Errors 6 | . 1 1 2 2 . Matter Fused 4 | . 2 1 1 . . Heat Flow Errors 3 | . 1 1 . 1 . Energy Discharges 3 | . . 2 1 . . Data Loss (minor) 3 | . 2 . . 1 . Targeting Errors 1 | . . . . 1 . Overload Shots . | . . . . . . Overflow Damage 44 | . . . . . 44 Projectiles . | . . . . . . Explosions 44 | . . . . . 44 Melee . | . . . . . . Knockbacks . | . . . . . . Impact . | . . . . . . Kinetic . | . . . . . . Secondary . | . . . . . . Self-Inflicted Damage 138 | . . 3 . . 135 Shots 4 | . . . . . 4 Rammed 1 | . . 1 . . . Targets Rammed 1 | . . 1 . . . Kicked . | . . . . . . Crushed . | . . . . . . Highest Temperature 283 | . 149 68 . 143 283 Average Temperature 96 | . 42 47 . 77 108 Received Heat Transfer 579 | . 57 36 . . 486 Effects 1 | . . . . . 1 Energy Bleed 1 | . . . . . 1 Siege Activations . | . . . . . . Robots Corrupted . | . . . . . . Combat Hostiles . | . . . . . . Parts Fried 5 | . . . . . 5 Impact Corruptions . | . . . . . . Robots Melted . | . . . . . . Combat Hostiles . | . . . . . . Parts Melted . | . . . . . . Heat Transferred 1768 | . 300 275 . 225 968 Parts Sabotaged . | . . . . . . Parts Stolen . | . . . . . . Parts Stripped . | . . . . . . Power Chain Reactions 3 | . . . . . 3 Missiles Intercepted . | . . . . . . Alert | -11 -10 -10 -10 -9 -8 ------- Run | Scr Mat Min Exi Min Mat Peak Influence 427 | . 230 155 . 230 427 Initial 89 | . . . . . 89 Average 91 | . 90 58 . 165 92 Maximum Alert Level 2 | . 1 . . 1 2 Low Security (%) 77 | 100 72 100 . 49 77 Level 1 21 | . 27 . . 50 19 Level 2 . | . . . . . 3 Level 3 . | . . . . . . Level 4 . | . . . . . . Level 5 . | . . . . . . High Security . | . . . . . . Max Security . | . . . . . . Squads Dispatched 5 | . 2 . . . 3 Investigation 1 | . . . . . 1 Extermination . | . . . . . . Reinforcement 4 | . 2 . . . 2 Assault . | . . . . . . Garrison . | . . . . . . Intercept . | . . . . . . Construction Impeded 1 | . . . . . 1 Haulers Reinforced . | . . . . . . Stealth | -11 -10 -10 -10 -9 -8 --------- Run | Scr Mat Min Exi Min Mat Distress Signals 6 | . 1 . . . 5 Communications Jammed . | . . . . . . Distress Signals . | . . . . . . Times Spotted 58 | . 19 7 . 10 22 Peak Tracking Total 9 | . 6 3 . 5 9 Tactical Retreats 4 | . 1 . . 2 1 Traps | -11 -10 -10 -10 -9 -8 ------- Run | Scr Mat Min Exi Min Mat Traps Triggered 3 | . 3 . . . . Indirectly . | . . . . . . Trap Hack Attempts . | . . . . . . Triggered . | . . . . . . Disarmed . | . . . . . . Reprogrammed . | . . . . . . Reused . | . . . . . . Traps Extracted . | . . . . . . Installed . | . . . . . . Triggered . | . . . . . . Machines | -11 -10 -10 -10 -9 -8 ---------- Run | Scr Mat Min Exi Min Mat Machines Disabled 5 | . . . . . 5 Max in Single Turn 2 | . . . . . 2 Machines Sabotaged . | . . . . . . Garrisons Compromised . | . . . . . . Overloaded Fab Kills . | . . . . . . Fab Network Shutdowns . | . . . . . . Hacking | -11 -10 -10 -10 -9 -8 --------- Run | Scr Mat Min Exi Min Mat Machines Accessed 7 | . 6 . . . 1 Terminals 7 | . 6 . . . 1 Fabricators . | . . . . . . Repair Stations . | . . . . . . Recycling Units . | . . . . . . Scanalyzers . | . . . . . . Garrison Access . | . . . . . . Total Hacks 23 | . 22 . . . 1 Successful 16 | . 15 . . . 1 Failed 7 | . 7 . . . . Catastrophic . | . . . . . . Database Lockouts . | . . . . . . Manual 4 | . 4 . . . . Terminals 23 | . 22 . . . 1 Fabricators . | . . . . . . Repair Stations . | . . . . . . Recycling Units . | . . . . . . Scanalyzers . | . . . . . . Garrison Access . | . . . . . . Terminal Hacks 13 | . 12 . . . 1 Robot Analysis 1 | . 1 . . . . Prototype ID Bank 3 | . 3 . . . . Unreport Threat 3 | . 2 . . . 1 Locate Traps 4 | . 4 . . . . Surveillance Status 1 | . 1 . . . . Registered Components 1 | . 1 . . . . Fabricator Hacks . | . . . . . . Repair Station Hacks . | . . . . . . Recycling Unit Hacks . | . . . . . . Scanalyzer . | . . . . . . Garrison Access Hacks . | . . . . . . Unauthorized Hacks 3 | . 3 . . . . Terminals 3 | . 3 . . . . Assimilate 3 | . 3 . . . . Fabricators . | . . . . . . Repair Stations . | . . . . . . Recycling Units . | . . . . . . Scanalyzers . | . . . . . . Garrison Access . | . . . . . . Data Cores Recovered . | . . . . . . Used . | . . . . . . Hacking Detections 4 | . 4 . . . . Full Trace Events . | . . . . . . Feedback Events . | . . . . . . Feedback Blocked . | . . . . . . Robot Schematics Acquired . | . . . . . . Robots Built . | . . . . . . Matter . | . . . . . . Time . | . . . . . . Total Robot Build Rating . | . . . . . . Part Schematics Acquired . | . . . . . . Parts Built . | . . . . . . Matter . | . . . . . . Time . | . . . . . . Total Part Build Rating . | . . . . . . Parts Repaired . | . . . . . . Time . | . . . . . . Parts Recycled . | . . . . . . Recycled Matter . | . . . . . . Retrieved Matter . | . . . . . . Retrieved Components . | . . . . . . Parts Scanalyzed . | . . . . . . Part Schematics Acquired . | . . . . . . Parts Damaged . | . . . . . . Bothacking | -11 -10 -10 -10 -9 -8 ------------ Run | Scr Mat Min Exi Min Mat Used RIF Installer . | . . . . . . Robots Hacked . | . . . . . . Non-combat . | . . . . . . Combat . | . . . . . . Robot Hacks Applied . | . . . . . . Relay Couplers Released . | . . . . . . Robots Rewired . | . . . . . . Allies Hacked . | . . . . . . Hacks Repelled . | . . . . . . Allies | -11 -10 -10 -10 -9 -8 -------- Run | Scr Mat Min Exi Min Mat Total Allies 2 | . 2 . . . . Largest Group 2 | . 2 2 2 2 . Highest-Rated Group 20 | . 20 20 20 20 . Highest-Rated Ally 10 | . 10 10 10 10 . Total Orders . | . . . . . . Ally Attacks . | . . . . . . Total Damage . | . . . . . . Kills . | . . . . . . Allies Corrupted . | . . . . . . Allies Melted . | . . . . . . Intel | -11 -10 -10 -10 -9 -8 ------- Run | Scr Mat Min Exi Min Mat Robot Analysis Total 1 | . 1 . . . . Derelict Logs Recovered 2 | . . 1 . 1 . Drone Launches . | . . . . . . Drone Recoveries . | . . . . . . Exploration | -11 -10 -10 -10 -9 -8 ------------- Run | Scr Mat Min Exi Min Mat Turns Passed 1585 | 38 515 283 171 169 409 Spaces Moved 1199 | 37 498 226 137 78 223 Core 5 | 4 1 . . . . Treads . | . . . . . . Legs 3 | . . . . . 3 Wheels 429 | 33 396 . . . . Hover 762 | . 101 226 137 78 220 Flight . | . . . . . . Fastest Speed 50 | 50 56 56 56 56 56 Average Speed 76 | 84 83 56 56 56 102 Slowest Speed 200 | 90 200 56 56 56 120 Overloaded Moves . | . . . . . . Propulsion Burnouts . | . . . . . . Robots Hopped . | . . . . . . Cave-ins Triggered . | . . . . . . Exploration Rate (%) 39 | 3 90 47 51 17 26 Regions Visited 5 Branch Regions 3 Pre-discovered Areas 2 | . . 2 . . . Known Exits Taken . | . . . . . . Unknown Exits Taken 5 | 1 1 1 1 1 . Scrap Searched . | . . . . . . Spaces Dug . | . . . . . . Terrain Destroyed 14 | . . . . . 14 Melee . | . . . . . . Projectile . | . . . . . . AOE 14 | . . . . . 14 Terrain Rammed . | . . . . . . Walls Destroyed . | . . . . . . Machines Disabled . | . . . . . . Actions | -11 -10 -10 -10 -9 -8 --------- Run | Scr Mat Min Exi Min Mat Total 1716 | 41 570 354 230 174 347 Wait 375 | . 39 109 94 59 74 Move 1194 | 36 497 225 136 77 223 Hop . | . . . . . . Pick Up 4 | . 3 . . . 1 Fast Attach 20 | 5 5 1 . 3 6 Attach . | . . . . . . Detach . | . . . . . . Swap 6 | . 1 . . 4 1 Drop 16 | . 5 1 . 5 5 Fire 77 | . 15 15 . 16 31 Melee . | . . . . . . Ram 1 | . . 1 . . . Kick . | . . . . . . Crush . | . . . . . . Escape Stasis . | . . . . . . Rewire . | . . . . . . Trap . | . . . . . . Miscellaneous 23 | . 5 2 . 10 6 Route ------- -11/Scrapyard -10/Materials (discovered 3 exits: [*Mat x2] / [*Min]) -10/Mines (discovered 2 exits: [*Mat] / [*Exi]) -10/Exiles (discovered 2 exits: [*Min x2]) -9/Mines -8/Materials (discovered 1 exit: Fac) History --------- Turn | Location | Event 1 | -11/Scrapyard | Upgraded with Propulsion slot (x1) 1 | -11/Scrapyard | Upgraded with Utility slot (x2) 1 | -11/Scrapyard | Upgraded with Weapon slot (x1) 11 | -11/Scrapyard | Discovered new exit (range 15) 39 | -11/Scrapyard | Entered Materials 309 | -10/Materials | Build established: Mutant 341 | -10/Materials | Discovered new exit (range 15) 446 | -10/Materials | Discovered new exit (range 9) 500 | -10/Materials | Discovered new exit (range 16) 554 | -10/Materials | Entered Mines 554 | -10/Mines | Accompanied by 2 allies 555 | -10/Mines | Learned location of Storage (-9) 611 | -10/Mines | Reached level 2 796 | -10/Mines | Discovered new exit (range 8) 797 | -10/Mines | Learned location of Zion (-7) 809 | -10/Mines | Discovered new exit (range 5) 825 | -10/Mines | Deemed a non-threat by the Exiles lab entrance 837 | -10/Mines | Entered Exiles 837 | -10/Exiles | Accompanied by 2 allies 845 | -10/Exiles | Discovered new exit (range 16) 853 | -10/Exiles | Met 8R-AWN 861 | -10/Exiles | Met EX-HEX 886 | -10/Exiles | Met EX-DEC 906 | -10/Exiles | Discovered new exit (range 15) 1008 | -10/Exiles | Entered Mines 1008 | -9/Mines | Accompanied by 2 allies 1017 | -9/Mines | Reached level 3 1077 | -9/Mines | Learned location of 1 exit from Materials 1081 | -9/Mines | Discovered new exit (range 7) 1084 | -9/Mines | Joined a pair of Derelicts in attacking an 0b10 outpost 1115 | -9/Mines | Upgraded with Utility slot (x1) 1177 | -9/Mines | Entered Materials 1178 | -8/Materials | Identified exit to Factory 1179 | -8/Materials | Reached level 4 1245 | -8/Materials | Upgraded with Utility slot (x1) 1466 | -8/Materials | Reached level 5 1522 | -8/Materials | Core integrity fell below 50% 1575 | -8/Materials | Core integrity fell below 20% 1586 | -8/Materials | Destroyed self with Mini Grenade Launcher Last Messages --------------- 01571_ U-05 Engineer destroyed. 01571_ Destroyed Terrain Scanner. 01571_ ALERT: Construction progress impeded, dispatching reinforcements to local area. 01572_ K-01 Serf collects debris. 01574_ W-25 Informer suffers critical hit. 01574_ Destroyed Imp. Hover Unit. 01574_ Destroyed Lgt. Deuterium Engine. 01574_ Visual Processing Unit fried. 01574_ W-25 Informer destroyed. 01574_ K-01 Serf destroyed. 01574_ U-05 Engineer destroyed. 01574_ Destroyed Welding Torch. 01576_ K-01 Serf collects debris. 01578_ G-47 Trooper IFF system glitched. 01578_ Lgt. Armor Plating destroyed. 01579_ K-01 Serf collects debris. 01579_ Acquired 25 matter. 01581_ Acquired Aluminum Leg. 01582_ K-01 Serf collects debris. Map ----- +----------------------------------------------------+ | ?????????????????????????????????????????????????? | | ?????????????????????????????????????????????????? | | ?????????????????????????????????????????????????? | | ???????????????????????? ???????????????????????? | | ????????????????????????] ???????????????????????? | | ???????????????????????? "??????????????????????? | | ???????????????# ??????? "??????????????????????? | | ???????????????# ??????? ??????????????????????? | | ???????????????# ?????? ??????????????????????? | | ???????????????# ?????? ??????????????????????? | | ???????????????# ????? ??????????????????????? | | ???????????????# ######/#######????????????????? | | ???????????????? = #????????????????? | | ????????????????? = k #????????????????? | | ?????????????????? == #????????????????? | | ???????????????????# %* " #????????????????? | | ??????????????????## w =%! #????????????????? | | ??????????????????# =% | #????????????????? | | ??????????????????# gg![= #?"""????????????? | | ???????????????????# =% %!k # """ ???????????? | | ???????????????????#T=!gg" !!! + ?????????? | | ???????????????????##%*%= "g%! # #???????? | | ????????????????????#=! %!! #????? " ????????? | | ????????????????????# " #????????????????? | | ????????????????????# #????????????????? | | ????????????????????# @ ##???????#?#?????? | | ????????????????????# "" ! #####??? ? #???? | | ????????????????????# """ ? ????? | | ????????????????????# """ T ????? | | ????????????????????# """ ????? | | ????????????????????# ###+###! ????? | | ????????????????????# #??????# #????? | | ????????????????????# """ #??????# #????? | | ?????##########?????# """ #??????# #????? | | ?????# #?????# " " #??????# #????? | | ?????# """"" *#?????# " ##?????# ###### | | ?????# """"" #?????# % +?????# ## | | ?????# """"" ####### ###?????# ## ! | | ?????# """"" # """ ######### ## | | ?????# """"" + "" ##[ # ##!] | | ?????# """"" # = ! """ ## ] # ##!] | | ?????# """"" ###= ## ## + ## ] | | ?????# # [ # + [ # ##! | | ?????########## " ]# ## # T# | | ??????????????# " # #### ## ! # ###### | | ??????????????# "" # #####+########## | | ??????????????# # # #????# | | ??????????????# ! + # """ """ #????# | | ??????????????############ """ """ #????####+##### | | ?????????????????????????# """ """ #????# # | +----------------------------------------------------+ Best States ------------- Heat Dissipation 53 Energy Generation 19 Energy Capacity 315 Matter Stores 300 Matter Capacity 300 Sight Range 17 Robot Scan Range 16 Terrain Scan Range 14 Terrain Scan Density 60 Base Temperature (-) 100 Armor Coverage 150 Evasion (%) 53 Targeting Accuracy 6 Armor Integrity Analysis 33 Item Schematics ----------------- None Robot Schematics ------------------ None Fabricated ------------ Nothing Alien Tech Used ----------------- None Achievements -------------- None Challenges ------------ None RPGLIKE | -11 -10 -10 -10 -9 -8 --------- Run | Scr Mat Min Exi Min Mat Levels Raised 4 | . . 1 . 1 2 XP Earned 10170 | 3000 975 1200 200 1600 3195 XP Spent 7365 | 2970 . 1495 . 1100 1800 Upgrades 21 | 8 . 9 . 1 3 Propulsion Slot 1 | 1 . . . . . Utility Slot 4 | 2 . . . 1 1 Weapon Slot 1 | 1 . . . . . Core Integrity 3 | . . 3 . . . Heat Dissipation 3 | 2 . 1 . . . Energy Generation 1 | 1 . . . . . Energy Storage 1 | . . 1 . . . Mass Support 1 | . . 1 . . . Inventory Capacity 2 | 1 . 1 . . . Sight Range 1 | . . 1 . . . Ranged Accuracy 1 | . . 1 . . . KI Damage % 1 | . . . . . 1 TH Damage % 1 | . . . . . 1 Protomatter Created 177 | . 29 30 . 17 101 Integrity Restored 489 | . 87 42 . 219 141 Core 489 | . 87 42 . 219 141 Protomatter Decayed 70 | . . 16 . . 54 Game ------ Seed XenonMetafiberFilter Manual? 0 Play Time 00:25:06 Cumulative 26.7 hours Start 2021.03.31 @ 21:23:24 End 2021.03.31 @ 21:46:37 Sessions 1 Manual Loads 0 Difficulty Rogue Special Mode Winter2019/RPGLIKE Game No. 28 Rogue 28 Adventurer 0 Explorer 0 Win Type - Total 0 Types 0/0/0/0/0/0/0/0/0 Lore% 41 Gallery% 43 Achievement% 38 Wizard Run 0 Options --------- ASCII 0 Keyboard 0 Movement Numpad Keybinds 0 Fullscreen 1 Font 18/SmallcapsGlow Map View 76x50 Tactical HUD 1 Map Filters NONE Filters NONE Steam 1 RUN: 0ef2ff6d-ee44-41dc-9b7e-3cb16cc7805b